bitfinex/quotes_BTCUSD_20220115
["timestamp","ask_amount","ask_price","bid_price","bid_amount"]
[1642214603093,0.47181296,43076.0,43071.0,0.00020629]
[1642214603538,0.23,43076.0,43071.0,0.00020629]
[1642214614594,0.23,43076.0,43072.0,0.058047]
[1642214614991,0.23,43076.0,43073.0,0.00017191]
[1642214617199,0.23,43076.0,43073.0,0.00029191]
[1642214617594,0.23,43076.0,43074.0,0.00015472]
[1642214626746,0.50399642,43076.0,43074.0,0.00015472]
[1642214628648,0.51899642,43076.0,43074.0,0.00015472]
[1642214629812,0.50399642,43076.0,43074.0,0.00015472]
[1642214630613,0.51899642,43076.0,43074.0,0.00015472]
[1642214631416,0.56519642,43076.0,43074.0,0.00015472]
[1642214631816,0.55019642,43076.0,43074.0,0.00015472]
[1642214632717,0.56519642,43076.0,43074.0,0.00015472]
[1642214633352,0.27813255,43075.0,43074.0,0.00015472]
[1642214633553,0.70014955,43075.0,43074.0,0.00015472]
[1642214633954,0.79421483,43075.0,43074.0,0.00015472]
[1642214634453,0.7954311,43075.0,43074.0,0.00015472]
[1642214634654,0.8144311,43075.0,43074.0,0.00015472]
[1642214635852,0.7954311,43075.0,43074.0,0.00015472]
[1642214636553,0.8194311,43075.0,43074.0,0.00015472]
[1642214637798,0.7954311,43075.0,43074.0,0.00015472]
[1642214638598,1.50664626,43075.0,43074.0,0.00015472]
[1642214639197,1.23444843,43075.0,43074.0,0.00015472]
[1642214639997,1.21844843,43075.0,43074.0,0.00015472]
[1642214640204,0.52323327,43075.0,43074.0,0.00015472]
[1642214640397,0.79769554,43075.0,43074.0,0.00015472]
[1642214640597,0.53923327,43075.0,43074.0,0.00015472]
[1642214641044,1.23444843,43075.0,43074.0,0.00015472]
[1642214641843,1.27650643,43075.0,43074.0,0.00015472]
[1642214642646,1.29250643,43075.0,43074.0,0.00015472]
[1642214642950,0.59729127,43075.0,43074.0,0.00015472]
[1642214643146,0.8708467,43075.0,43074.0,0.00015472]
[1642214643346,0.59729127,43075.0,43074.0,0.00015472]
[1642214643847,0.58129127,43075.0,43074.0,0.00015472]
[1642214644247,1.17726134,43075.0,43074.0,0.00015472]
[1642214644697,1.13520334,43075.0,43074.0,0.00015472]
[1642214646001,1.11920334,43075.0,43074.0,0.00015472]
[1642214646603,1.13520334,43075.0,43074.0,0.00015472]
[1642214647403,1.4024492,43075.0,43074.0,0.00015472]
[1642214647904,1.3864492,43075.0,43074.0,0.00015472]
[1642214648107,1.11920334,43075.0,43074.0,0.00015472]
[1642214648349,1.38651497,43075.0,43074.0,0.00015472]
[1642214648749,1.03520334,43075.0,43074.0,0.00015472]
[1642214648948,0.022627,43074.0,43069.0,0.03332772]
[1642214649349,0.65817007,43075.0,43070.0,6.876e-05]
[1642214650150,0.65817007,43075.0,43070.0,0.05811976]
[1642214650451,0.64217007,43075.0,43070.0,0.05811976]
[1642214650654,0.65817007,43075.0,43070.0,0.05811976]
[1642214650849,0.0622,43075.0,43070.0,0.05811976]
[1642214652005,0.0462,43075.0,43070.0,6.876e-05]
[1642214652407,0.0462,43075.0,43068.0,0.058055]
[1642214652607,0.0462,43075.0,43069.0,8.595e-05]
[1642214653108,0.0462,43075.0,43067.0,0.00012033]
[1642214653315,0.0462,43075.0,43068.0,0.058056]
[1642214653808,0.0462,43075.0,43068.0,0.05763195]
[1642214654008,1.2,43069.0,43068.0,0.05685195]
[1642214654208,1.18951679,43069.0,43064.0,0.116111]
[1642214654407,0.033461,43068.0,43064.0,0.116111]
[1642214654607,0.033461,43068.0,43065.0,6.876e-05]
[1642214657148,0.033461,43068.0,43063.0,0.00010314]
[1642214657348,0.033461,43068.0,43063.0,0.26260382]
[1642214657749,0.033461,43068.0,43064.0,8.595e-05]
[1642214658952,0.033461,43068.0,43065.0,0.05806]
[1642214659153,0.61803369,43069.0,43065.0,0.05806]
[1642214659994,0.60503369,43069.0,43065.0,0.05806]
[1642214660194,0.60503369,43069.0,43065.0,0.11611261]
[1642214660596,0.60503369,43069.0,43065.0,2.19150529]
[1642214660794,0.61703369,43069.0,43065.0,2.19150529]
[1642214661996,0.60503369,43069.0,43065.0,2.19150529]
[1642214662796,0.61403369,43069.0,43065.0,2.27950529]
[1642214664049,0.60503369,43069.0,43065.0,2.19150529]
[1642214664651,0.60503369,43069.0,43065.0,0.11611261]
[1642214664850,0.61403369,43069.0,43065.0,0.20311261]
[1642214666051,0.60503369,43069.0,43066.0,0.375817]
[1642214666453,0.60503369,43069.0,43067.0,2.8406298]
[1642214666652,0.60503369,43069.0,43068.0,0.9364787]
[1642214666852,0.61503369,43069.0,43068.0,0.9364787]
[1642214667496,0.60233369,43069.0,43068.0,0.9364787]
[1642214668097,0.59233369,43069.0,43068.0,0.9364787]
[1642214668800,0.60433369,43069.0,43068.0,0.9684787]
[1642214669599,0.60433369,43069.0,43068.0,1.55707836]
[1642214669999,0.59233369,43069.0,43068.0,1.52507836]
[1642214670853,0.59433369,43069.0,43068.0,1.55907836]
[1642214671052,0.59433369,43069.0,43068.0,0.9704787]
[1642214672056,0.59233369,43069.0,43068.0,0.9364787]
[1642214672458,0.00603369,43069.0,43068.0,0.9364787]
[1642214672855,0.00703369,43069.0,43068.0,1.0004787]
[1642214673976,0.00603369,43069.0,43068.0,0.9364787]
[1642214674802,0.00603369,43069.0,43068.0,0.9994787]
[1642214674999,0.00603369,43069.0,43068.0,0.438817]
[1642214675401,0.00603369,43069.0,43068.0,0.69639098]
[1642214676000,0.00603369,43069.0,43068.0,0.96484006]
[1642214676801,0.00603369,43069.0,43068.0,0.737817]
[1642214677602,0.00603369,43069.0,43068.0,1.32684006]
[1642214678002,0.00603369,43069.0,43068.0,1.26484006]
[1642214678751,0.00603369,43069.0,43068.0,1.32884006]
[1642214679155,0.00603369,43069.0,43068.0,1.02884006]
[1642214679353,0.00603369,43069.0,43068.0,0.69983252]
[1642214679553,0.00603369,43069.0,43068.0,0.439817]
[1642214680156,0.00603369,43069.0,43068.0,0.375817]
[1642214680354,0.00603369,43069.0,43067.0,2.7825838]
[1642214680556,0.00603369,43069.0,43067.0,2.66649457]
[1642214680756,0.00603369,43069.0,43067.0,2.77749457]
[1642214681156,0.00603369,43069.0,43067.0,0.111]
[1642214682100,0.00603369,43069.0,43065.0,0.05806]
[1642214688375,0.00603369,43069.0,43066.0,0.375817]
[1642214688777,0.8975348,43076.0,43067.0,0.4]
[1642214688975,0.8975348,43076.0,43070.0,0.058049]
[1642214689181,0.10461231,43074.0,43070.0,0.058049]
[1642214692506,0.10461231,43074.0,43068.0,0.00010314]
[1642214692805,0.10461231,43074.0,43068.0,0.058056]
[1642214693253,0.10461231,43074.0,43069.0,8.595e-05]
[1642214693554,0.10461231,43074.0,43065.0,0.11589687]
[1642214693753,0.10335278,43074.0,43065.0,0.11589687]
[1642214693954,0.09744352,43073.0,43067.0,0.0580516]
[1642214694155,0.09608843,43073.0,43068.0,0.058053]
[1642214694357,0.19713582,43076.0,43068.0,0.058053]
[1642214694560,0.09091644,43074.0,43069.0,6.876e-05]
[1642214697402,0.09597984,43073.0,43069.0,6.876e-05]
[1642214697602,0.1020121,43073.0,43069.0,6.876e-05]
[1642214701557,0.40195161,43073.0,43069.0,6.876e-05]
[1642214701954,0.1020121,43073.0,43069.0,6.876e-05]
[1642214702360,0.058063,43072.0,43069.0,6.876e-05]
[1642214702759,0.058063,43072.0,43064.0,0.00015471]
[1642214702760,0.12276957,43070.0,43064.0,0.00015471]
[1642214702958,0.375817,43066.0,43063.0,0.0001719]
[1642214703157,0.0474948,43065.0,43061.0,0.00020628]
[1642214703556,0.1055678,43065.0,43061.0,0.00020628]
[1642214703757,0.34924165,43065.0,43061.0,0.00020628]
[1642214704358,0.0349329,43062.0,43061.0,0.00020628]
[1642214704611,0.0811329,43062.0,43058.0,0.00025785]
[1642214705613,0.0216329,43062.0,43058.0,0.00025785]
[1642214706213,0.0216329,43062.0,43057.0,0.00027504]
[1642214708971,0.0216329,43062.0,43058.0,0.058069]
[1642214709370,0.2516329,43062.0,43059.0,0.00024066]
[1642214709572,0.1285852,43060.0,43059.0,0.00024066]
[1642214709770,0.1747852,43060.0,43059.0,0.00024066]
[1642214711573,0.1747852,43060.0,43057.0,0.00027504]
[1642214712007,0.1747852,43060.0,43057.0,0.05834604]
[1642214712408,0.1747852,43060.0,43058.0,0.00025785]
[1642214714612,0.0462,43060.0,43058.0,0.00025785]
[1642214714813,0.1285852,43059.0,43058.0,0.00025785]
[1642214715755,0.1285852,43059.0,43057.0,0.03332885]
[1642214716358,0.1285852,43059.0,43056.0,0.32537676]
[1642214717460,0.1285852,43059.0,43057.0,0.05807]
[1642214719904,0.0462,43060.0,43057.0,0.05807]
[1642214720104,0.1285852,43058.0,43057.0,0.05807]
[1642214721807,0.1285852,43058.0,43054.0,0.116134]
[1642214724557,0.1285852,43058.0,43055.0,0.58902306]
[1642214724956,0.1285852,43058.0,43055.0,0.64708906]
[1642214725155,0.0462,43060.0,43055.0,0.64708906]
[1642214725658,0.1285852,43058.0,43056.0,0.58902306]
[1642214726756,0.1285852,43058.0,43057.0,0.058068]
[1642214728806,0.1285852,43058.0,43055.0,0.58902306]
[1642214729210,0.1285852,43058.0,43056.0,0.58902306]
[1642214730008,0.1285852,43058.0,43055.0,0.58902306]
[1642214730609,0.23603393,43062.0,43055.0,0.58902306]
[1642214730884,0.1285852,43056.0,43055.0,0.58902306]
[1642214731281,0.1285852,43056.0,43054.0,3.38912285]
[1642214731484,0.1285852,43056.0,43055.0,1.18024939]
[1642214731681,0.1285852,43056.0,43055.0,1.1800664]
[1642214731881,0.1285852,43056.0,43055.0,0.925817]
[1642214732083,0.1285852,43056.0,43055.0,0.375817]
[1642214733487,0.1285852,43056.0,43055.0,0.43388447]
[1642214735098,0.1285852,43056.0,43055.0,0.73388447]
[1642214735600,0.1285852,43056.0,43055.0,0.43388447]
[1642214736203,0.1285852,43056.0,43055.0,0.375817]
[1642214736702,0.1285852,43056.0,43055.0,0.4338845]
[1642214738003,0.1285852,43056.0,43055.0,0.375817]
[1642214739358,0.1285852,43056.0,43055.0,0.63080909]
[1642214741460,0.1285852,43056.0,43055.0,0.375817]
[1642214742123,0.1285852,43056.0,43055.0,0.63016127]
[1642214742521,0.1285852,43056.0,43055.0,0.375817]
[1642214743122,0.1285852,43056.0,43055.0,0.725817]
[1642214743524,0.1285852,43056.0,43055.0,0.98140177]
[1642214744423,0.1285852,43056.0,43055.0,0.725817]
[1642214745327,0.1285852,43056.0,43055.0,0.375817]
[1642214745755,0.1285852,43056.0,43054.0,0.80350151]
[1642214746155,0.23603393,43062.0,43054.0,0.80350151]
[1642214746359,0.1285852,43058.0,43054.0,0.80350151]
[1642214746855,0.1285852,43058.0,43054.0,0.116134]
[1642214747257,0.1285852,43058.0,43055.0,0.59407212]
[1642214747856,0.1285852,43058.0,43056.0,0.59407212]
[1642214751412,0.23603393,43062.0,43056.0,0.59407212]
[1642214751912,0.1285852,43059.0,43056.0,0.59407212]
[1642214755277,0.1285852,43059.0,43057.0,0.11613]
[1642214755677,0.1285852,43059.0,43057.0,0.71020212]
[1642214756676,0.23603393,43062.0,43057.0,0.71020212]
[1642214757104,0.1285852,43060.0,43057.0,0.71020212]
[1642214758507,0.1285852,43060.0,43057.0,0.76826684]
[1642214759605,0.1285852,43060.0,43057.0,0.71020212]
[1642214762066,0.23,43062.0,43057.0,0.71020212]
[1642214762266,0.1285852,43060.0,43057.0,0.71020212]
[1642214763264,0.1285852,43060.0,43058.0,0.59407212]
[1642214763463,0.1285852,43060.0,43058.0,0.65213587]
[1642214763663,0.1285852,43060.0,43059.0,1.075817]
[1642214764264,0.1285852,43060.0,43059.0,1.33243541]
[1642214772908,0.07854517,43060.0,43059.0,1.33243541]
[1642214773807,0.07854517,43060.0,43059.0,0.375817]
[1642214776854,0.07854517,43060.0,43058.0,0.05806375]
[1642214777055,0.07854517,43060.0,43059.0,0.83845272]
[1642214777254,0.01425257,43060.0,43059.0,0.83845272]
[1642214777455,0.07854517,43060.0,43059.0,0.83845272]
[1642214777657,0.07854517,43060.0,43057.0,0.11613]
[1642214777854,0.07854517,43060.0,43059.0,0.59293919]
[1642214778655,0.07854517,43060.0,43058.0,0.59293919]
[1642214779055,0.0642926,43060.0,43058.0,0.59293919]
[1642214779255,0.01425257,43059.0,43058.0,0.59293919]
[1642214779517,0.01425257,43059.0,43057.0,0.80789239]
[1642214780032,0.01425257,43059.0,43057.0,0.11613]
[1642214781820,0.01425257,43059.0,43058.0,0.375817]
[1642214782425,0.01425257,43059.0,43057.0,0.11613]
[1642214782824,0.0642926,43058.0,43057.0,0.11613]
[1642214783022,0.0642926,43058.0,43057.0,0.491947]
[1642214784659,0.07854517,43058.0,43057.0,0.491947]
[1642214787009,0.07854517,43058.0,43057.0,2.03853059]
[1642214788210,0.07854517,43058.0,43057.0,0.491947]
[1642214793063,0.07854517,43058.0,43057.0,0.11613]
[1642214794707,0.07854517,43058.0,43057.0,0.491947]
[1642214795310,0.07854517,43058.0,43057.0,1.08521684]
[1642214795508,0.07854517,43058.0,43057.0,1.34494065]
[1642214795710,0.07854517,43058.0,43057.0,1.08521684]
[1642214796008,0.07854517,43058.0,43057.0,0.491947]
[1642214796607,0.07854517,43058.0,43057.0,0.11613]
[1642214797009,0.06584517,43058.0,43057.0,0.70952843]
[1642214797308,0.01425257,43058.0,43057.0,0.70952843]
[1642214797608,0.01903564,43058.0,43057.0,0.70952843]
[1642214799759,0.01903564,43058.0,43057.0,0.11613]
[1642214800460,0.01903564,43058.0,43057.0,0.70952843]
[1642214800661,0.01903564,43058.0,43057.0,0.59339843]
[1642214801267,0.01903564,43058.0,43055.0,0.69176239]
[1642214801564,0.01903564,43058.0,43054.0,0.59339843]
[1642214801565,0.0462,43057.0,43054.0,0.59339843]
[1642214801763,0.31832457,43055.0,43054.0,0.59339843]
[1642214802022,0.95979625,43055.0,43054.0,0.59339843]
[1642214802223,1.33561325,43055.0,43054.0,0.59346719]
[1642214802824,1.45179425,43055.0,43054.0,0.59346719]
[1642214803024,1.39848632,43055.0,43054.0,6.876e-05]
[1642214803224,1.14162149,43055.0,43054.0,6.876e-05]
[1642214803428,1.14162149,43055.0,43052.0,0.00010314]
[1642214803626,0.02866377,43054.0,43052.0,0.00010314]
[1642214803824,0.0462,43053.0,43052.0,0.00010314]
[1642214804225,0.422017,43053.0,43052.0,0.00010314]
[1642214804426,0.47322403,43053.0,43050.0,0.00013752]
[1642214804626,0.022627,43051.0,43045.0,0.00022347]
[1642214804826,0.0462,43050.0,43045.0,0.00022347]
[1642214805028,0.0012071,43046.0,43045.0,0.00022347]
[1642214805227,0.0474071,43046.0,43045.0,0.00022347]
[1642214805427,0.33348283,43046.0,43045.0,0.00022347]
[1642214806957,0.33348283,43046.0,43043.0,0.00025785]
[1642214807158,0.3477354,43046.0,43043.0,0.00025785]
[1642214807358,0.3477354,43046.0,43042.0,0.00027504]
[1642214808157,0.00478307,43044.0,43042.0,0.00027504]
[1642214809708,0.00478307,43044.0,43042.0,0.05836604]
[1642214810008,0.00478307,43044.0,43043.0,0.00025785]
[1642214810210,0.23478307,43044.0,43043.0,0.00025785]
[1642214810410,0.49964594,43044.0,43043.0,0.00025785]
[1642214811209,0.51664594,43044.0,43043.0,0.00025785]
[1642214812414,0.51389851,43044.0,43043.0,0.00025785]
[1642214813352,0.53089851,43044.0,43040.0,0.00030942]
[1642214813752,0.52611544,43044.0,43040.0,0.00030942]
[1642214814154,0.00478307,43042.0,43040.0,0.00030942]
[1642214817806,0.01425257,43041.0,43038.0,0.0584398]
[1642214818007,0.02028981,43041.0,43038.0,0.05342261]
[1642214818207,0.29673253,43041.0,43038.0,0.05342261]
[1642214818609,0.02028981,43041.0,43038.0,0.05342261]
[1642214819410,0.00478307,43040.0,43038.0,0.05342261]
[1642214821785,0.00478307,43040.0,43038.0,0.11151306]
[1642214822782,0.00478307,43040.0,43038.0,0.80327545]
[1642214823182,0.01425257,43039.0,43038.0,0.80327545]
[1642214824809,0.01903564,43039.0,43038.0,0.80327545]
[1642214825009,0.01903564,43039.0,43038.0,1.17909245]
[1642214825208,0.01903564,43039.0,43038.0,1.84060706]
[1642214825811,0.01903564,43039.0,43038.0,1.14884467]
[1642214828357,0.01903564,43039.0,43038.0,1.09075422]
[1642214828661,0.01903564,43039.0,43038.0,1.78644042]
[1642214829461,0.01903564,43039.0,43038.0,0.42923961]
[1642214831061,0.01903564,43039.0,43038.0,1.35745646]
[1642214831858,0.01903564,43039.0,43038.0,2.05315032]
[1642214832733,0.01903564,43039.0,43038.0,1.35745646]
[1642214833337,0.01903564,43039.0,43038.0,0.98163946]
[1642214833734,0.01903564,43039.0,43038.0,0.92821685]
[1642214834335,0.28635315,43040.0,43038.0,0.92821685]
[1642214834336,0.20458879,43040.0,43038.0,1.62391952]
[1642214834534,0.0462,43039.0,43038.0,1.62391952]
[1642214834738,0.33144663,43039.0,43038.0,1.62391952]
[1642214835035,0.33144663,43039.0,43035.0,0.59639325]
[1642214836458,0.33144663,43039.0,43036.0,0.59639325]
[1642214837262,0.33144663,43039.0,43035.0,0.65449425]
[1642214838058,0.33144663,43039.0,43036.0,0.59639325]
[1642214840205,0.0462,43039.0,43035.0,0.59639325]
[1642214840404,0.02578575,43037.0,43035.0,0.59639325]
[1642214840705,0.0462,43036.0,43035.0,0.59639325]
[1642214840903,0.0462,43036.0,43034.0,0.69070267]
[1642214841104,0.0462,43036.0,43035.0,6.876e-05]
[1642214841504,0.30998728,43036.0,43035.0,6.876e-05]
[1642214841705,0.0462,43036.0,43035.0,6.876e-05]
[1642214842807,0.31123231,43036.0,43033.0,0.9264931]
[1642214843007,0.0462,43036.0,43033.0,0.9264931]
[1642214843255,0.255003,43035.0,43034.0,8.595e-05]
[1642214843455,0.0462,43035.0,43034.0,8.595e-05]
[1642214843857,0.0462,43035.0,43032.0,0.058105]
[1642214844258,0.0462,43035.0,43033.0,0.00010314]
[1642214845962,0.04612914,43035.0,43033.0,0.92659624]
[1642214846259,0.04612914,43035.0,43034.0,8.595e-05]
[1642214848808,0.04612914,43035.0,43032.0,0.00012033]
[1642214849009,0.04612914,43035.0,43032.0,0.05822]
[1642214849409,0.04612914,43035.0,43033.0,0.00010314]
[1642214849808,0.04612914,43035.0,43033.0,0.69577734]
[1642214850212,0.04612914,43035.0,43034.0,8.595e-05]
[1642214850861,0.27612914,43035.0,43034.0,8.595e-05]
[1642214851862,0.27612914,43035.0,43034.0,0.69586329]
[1642214854609,0.27612914,43035.0,43034.0,8.595e-05]
[1642214857310,0.23,43035.0,43034.0,8.595e-05]
[1642214857510,0.23,43035.0,43034.0,0.69586329]
[1642214858458,0.23,43035.0,43034.0,8.595e-05]
[1642214858858,0.083,43035.0,43034.0,8.595e-05]
[1642214859661,0.083,43035.0,43034.0,0.59648381]
[1642214860260,0.07587402,43035.0,43034.0,0.59648381]
[1642214861363,0.34500901,43035.0,43034.0,0.59648381]
[1642214862209,0.07587402,43035.0,43034.0,0.59648381]
[1642214862409,0.33755174,43035.0,43034.0,0.59648381]
[1642214862612,0.07587402,43035.0,43034.0,0.59648381]
[1642214862909,0.34108757,43035.0,43034.0,0.59648381]
[1642214863108,0.34139514,43035.0,43034.0,0.59648381]
[1642214863312,0.07587402,43035.0,43034.0,0.59648381]
[1642214865963,0.32943452,43035.0,43034.0,0.59648381]
[1642214869263,0.37563452,43035.0,43034.0,0.59648381]
[1642214871415,0.12207402,43035.0,43034.0,0.59648381]
[1642214871816,0.37665059,43035.0,43034.0,0.59648381]
[1642214872016,0.37448246,43035.0,43034.0,0.59648381]
[1642214872217,0.12207402,43035.0,43034.0,0.59648381]
[1642214872817,0.38167428,43035.0,43034.0,0.59648381]
[1642214873018,0.12207402,43035.0,43034.0,0.59648381]
[1642214874258,0.37951766,43035.0,43034.0,0.59648381]
[1642214875659,0.12207402,43035.0,43034.0,0.59648381]
[1642214875860,0.37655702,43035.0,43034.0,0.59648381]
[1642214876664,0.37567212,43035.0,43034.0,0.59648381]
[1642214877135,0.12207402,43035.0,43034.0,8.595e-05]
[1642214877736,0.37727342,43035.0,43034.0,8.595e-05]
[1642214877937,0.12207402,43035.0,43034.0,8.595e-05]
[1642214879239,0.38501371,43035.0,43034.0,8.595e-05]
[1642214879737,0.37480192,43035.0,43034.0,8.595e-05]
[1642214879938,0.12207402,43035.0,43034.0,8.595e-05]
[1642214887918,0.12207402,43035.0,43033.0,0.00010314]
[1642214889064,0.12207402,43035.0,43033.0,0.596501]
[1642214889568,0.12207402,43035.0,43034.0,8.595e-05]
[1642214889966,0.12207402,43035.0,43033.0,0.00010314]
[1642214890565,0.12207402,43035.0,43033.0,0.596501]
[1642214890966,0.12207402,43035.0,43034.0,8.595e-05]
[1642214892316,0.12207402,43035.0,43033.0,0.00010314]
[1642214894920,0.25899809,43034.0,43033.0,0.00010314]
[1642214895120,0.30519809,43034.0,43033.0,0.00010314]
[1642214895521,0.15819809,43034.0,43033.0,0.00010314]
[1642214896158,0.15819809,43034.0,43032.0,0.00012033]
[1642214896959,0.15819809,43034.0,43030.0,0.00015471]
[1642214897762,0.0462,43034.0,43030.0,0.00015471]
[1642214903463,0.0462,43034.0,43030.0,0.05825783]
[1642214903763,0.0462,43034.0,43031.0,0.11634052]
[1642214904163,0.0462,43034.0,43032.0,0.00012033]
[1642214907722,0.0462,43034.0,43032.0,0.11630911]
[1642214908120,0.0462,43034.0,43033.0,0.00010314]
[1642214911160,0.07587402,43035.0,43033.0,0.00010314]
[1642214913160,0.07587402,43035.0,43033.0,0.596501]
[1642214913360,0.07587402,43035.0,43034.0,0.608092]
[1642214913560,0.07587402,43035.0,43034.0,0.60817795]
[1642214915113,0.07587402,43035.0,43034.0,0.98399495]
[1642214915314,0.07587402,43035.0,43034.0,0.43399495]
[1642214915717,0.07587402,43035.0,43034.0,1.03039281]
[1642214916117,0.07587402,43035.0,43034.0,0.97230081]
[1642214916316,0.07587402,43035.0,43034.0,0.59648381]
[1642214917819,0.07587402,43035.0,43034.0,8.595e-05]
[1642214920163,0.07587402,43035.0,43034.0,0.35008595]
[1642214920568,0.07587402,43035.0,43034.0,8.595e-05]
[1642214925118,0.07587402,43035.0,43034.0,0.30008595]
[1642214925787,0.07587402,43035.0,43034.0,0.89647466]
[1642214926485,0.07587402,43035.0,43034.0,0.30008595]
[1642214930215,0.07587402,43035.0,43034.0,8.595e-05]
[1642214932922,0.07587402,43035.0,43034.0,0.45008595]
[1642214933120,0.07587402,43035.0,43034.0,0.696869]
[1642214933367,0.07587402,43035.0,43034.0,0.45008595]
[1642214935572,0.07587402,43035.0,43034.0,8.595e-05]
[1642214938916,0.07587402,43035.0,43034.0,0.30008595]
[1642214939316,0.07587402,43035.0,43034.0,8.595e-05]
[1642214940865,0.07587402,43035.0,43034.0,0.59616074]
[1642214942066,0.07587402,43035.0,43034.0,8.595e-05]
[1642214942666,0.07587402,43035.0,43034.0,0.59648435]
[1642214948563,0.07087402,43035.0,43034.0,0.59648435]
[1642214950864,0.07087402,43035.0,43034.0,8.595e-05]
[1642214951464,0.07087402,43035.0,43034.0,0.59648435]
[1642214951867,0.07087402,43035.0,43034.0,0.97230135]
[1642214952720,0.07087402,43035.0,43034.0,0.37590295]
[1642214953824,0.07087402,43035.0,43034.0,8.595e-05]
[1642214954822,0.07087402,43035.0,43034.0,0.59646856]
[1642214966872,0.07087402,43035.0,43034.0,0.97228556]
[1642214972474,0.07087402,43035.0,43034.0,0.95678556]
[1642214973572,0.07087402,43035.0,43034.0,1.07296156]
[1642214973772,0.07087402,43035.0,43034.0,1.07418618]
[1642214975625,0.07087402,43035.0,43034.0,0.95801018]
[1642214976022,0.07087402,43035.0,43034.0,0.95678556]
[1642214976421,0.07087402,43035.0,43034.0,0.375817]
[1642214976622,0.07087402,43035.0,43034.0,2.06551755]
[1642214977022,0.07087402,43035.0,43034.0,0.375817]
[1642214977221,0.07087402,43035.0,43033.0,0.69577734]
[1642214978674,0.07087402,43035.0,43033.0,1.68974459]
[1642214978873,0.07087402,43035.0,43034.0,1.733909]
[1642214979073,0.07087402,43035.0,43034.0,0.433909]
[1642214979473,0.07087402,43035.0,43034.0,1.12968634]
[1642214980278,0.07087402,43035.0,43034.0,2.12365359]
[1642214980875,0.07087402,43035.0,43034.0,2.06556159]
[1642214982120,0.07087402,43035.0,43034.0,1.07159434]
[1642214982322,0.07087402,43035.0,43034.0,0.775817]
[1642214983518,0.07087402,43035.0,43034.0,2.43892427]
[1642214983920,0.07087402,43035.0,43034.0,2.03892427]
[1642214984318,0.07087402,43035.0,43034.0,0.375817]
[1642214984919,0.07087402,43035.0,43034.0,0.97219241]
[1642214985972,0.07087402,43035.0,43034.0,0.375817]
[1642214990445,0.07087402,43035.0,43034.0,0.9721566]
[1642214991544,0.07087402,43035.0,43034.0,0.375817]
[1642214995275,0.07087402,43035.0,43034.0,0.825817]
[1642214995775,0.07087402,43035.0,43034.0,0.375817]
[1642214996175,0.07087402,43035.0,43034.0,0.925817]
[1642214997023,0.07087402,43035.0,43034.0,3.49592695]
[1642214997223,0.07087402,43035.0,43034.0,4.45349176]
[1642214997623,0.07087402,43035.0,43034.0,4.51157976]
[1642214999426,0.07087402,43035.0,43034.0,1.94146981]
[1642215000128,0.07087402,43035.0,43034.0,1.39146981]
[1642215002096,0.07087402,43035.0,43034.0,2.08717785]
[1642215005527,0.3293302,43035.0,43034.0,1.71136085]
[1642215005727,0.3755302,43035.0,43034.0,1.65327285]
[1642215006331,0.3755302,43035.0,43033.0,0.59635845]
[1642215006528,0.28330552,43034.0,43033.0,0.59635845]
[1642215007333,0.28330552,43034.0,43032.0,0.058101]
[1642215007729,0.28330552,43034.0,43032.0,0.11620146]
[1642215010777,0.13107402,43035.0,43032.0,0.11620146]
[1642215011176,0.11707402,43035.0,43032.0,0.11620146]
[1642215011777,0.11707402,43035.0,43033.0,0.17427888]
[1642215012429,0.11707402,43035.0,43033.0,0.11618488]
[1642215013429,0.11707402,43035.0,43033.0,0.59635845]
[1642215014132,0.11707402,43035.0,43032.0,0.65445945]
[1642215016796,0.11707402,43035.0,43032.0,0.058101]
[1642215021623,0.11707402,43035.0,43032.0,0.65445945]
[1642215022623,0.07087402,43035.0,43032.0,0.65445945]
[1642215022822,0.07087402,43035.0,43032.0,0.058101]
[1642215025981,0.07087402,43035.0,43032.0,0.116195]
[1642215026584,0.07087402,43035.0,43032.0,0.71255345]
[1642215028137,0.07087402,43035.0,43033.0,0.11618469]
[1642215028437,0.07087402,43035.0,43034.0,0.05809201]
[1642215029541,0.07087402,43035.0,43032.0,0.65445945]
[1642215033382,0.07087402,43035.0,43032.0,0.058101]
[1642215037935,0.07087402,43035.0,43032.0,0.11620058]
[1642215044549,0.07087402,43035.0,43032.0,0.71253562]
[1642215047294,0.07087402,43035.0,43034.0,0.06]
[1642215051530,0.07087402,43035.0,43032.0,0.71253562]
[1642215056496,0.07087402,43035.0,43032.0,0.65443604]
[1642215059655,0.0462,43034.0,43032.0,0.65443604]
[1642215059855,0.05223792,43034.0,43032.0,0.65443604]
[1642215060455,0.26602076,43033.0,43032.0,0.59633504]
[1642215060656,0.26602076,43033.0,43031.0,0.1162]
[1642215061281,0.05223792,43034.0,43031.0,0.1162]
[1642215061681,0.00603792,43034.0,43031.0,0.1162]
[1642215062281,0.00603792,43034.0,43031.0,0.71253504]
[1642215062684,0.00603792,43034.0,43032.0,0.0580973]
[1642215062882,0.25970736,43034.0,43032.0,0.0580973]
[1642215063485,0.00603792,43034.0,43032.0,0.0580973]
[1642215063883,0.00603792,43034.0,43032.0,0.65443234]
[1642215064086,0.00603792,43034.0,43032.0,0.59633504]
[1642215064741,0.27842211,43034.0,43032.0,0.59633504]
[1642215065444,0.27842211,43034.0,43031.0,0.1162]
[1642215065645,0.00603792,43034.0,43031.0,0.1162]
[1642215066244,0.00603792,43034.0,43032.0,0.05809908]
[1642215066443,0.26335575,43034.0,43032.0,0.05809908]
[1642215067245,0.25835575,43034.0,43032.0,0.05809908]
[1642215067848,0.00103792,43034.0,43032.0,0.05809908]
[1642215068880,0.00103792,43034.0,43031.0,0.1162]
[1642215069583,0.00103792,43034.0,43032.0,0.05809911]
[1642215075995,0.00103792,43034.0,43032.0,0.65443415]
[1642215077197,0.00103792,43034.0,43032.0,0.05809911]
[1642215078199,0.00103792,43034.0,43032.0,0.65443415]
[1642215078998,0.00103792,43034.0,43032.0,0.05809911]
[1642215080337,0.00103792,43034.0,43032.0,0.65443415]
[1642215080736,0.00103792,43034.0,43032.0,0.05809911]
[1642215080935,0.00103792,43034.0,43031.0,0.71253504]
[1642215083884,0.00103792,43034.0,43031.0,0.1162]
[1642215085185,0.00103792,43034.0,43031.0,0.71253504]
[1642215087735,0.00103792,43034.0,43032.0,0.59633504]
[1642215089136,0.00103792,43034.0,43033.0,0.59633504]
[1642215096945,0.00103792,43034.0,43032.0,0.59633504]
[1642215098151,0.00103792,43034.0,43033.0,0.59633504]
[1642215100193,0.00103792,43034.0,43032.0,0.59633504]
[1642215102135,0.00103792,43034.0,43033.0,0.59633504]
[1642215103635,0.07087402,43035.0,43033.0,0.59633504]
[1642215103834,0.07087402,43035.0,43034.0,0.375817]
[1642215104534,0.07087402,43035.0,43033.0,0.65442991]
[1642215104936,0.07087402,43035.0,43034.0,0.375817]
[1642215105136,0.07087402,43035.0,43034.0,0.369817]
[1642215107996,0.07087402,43035.0,43033.0,0.75381908]
[1642215108495,0.07087402,43035.0,43034.0,0.59639646]
[1642215110334,0.07087402,43035.0,43033.0,0.65449133]
[1642215111838,0.07087402,43035.0,43034.0,0.59639646]